[Event "Late-Titled-Tuesday-Blitz-May-14-2024"]
[Site "Chess.com"]
[Date "2024.05.14"]
[Round "3"]
[White "Mackster23"]
[Black "MeisterJabo"]
[Result "0-1"]
[WhiteElo "2642"]
[BlackElo "2488"]
[TimeControl "180+1"]
[EndTime "14:30:37 PDT"]
[Termination "MeisterJabo won by resignation"]

1. e4 {[%clk 0:03:00.9]} 1... e5 {[%clk 0:02:58.8]} 2. Nf3 {[%clk 0:03:00.8]}
2... Nf6 {[%clk 0:02:59.3]} 3. d4 {[%clk 0:02:59.7]} 3... Nxe4 {[%clk
0:02:58.3]} 4. Bd3 {[%clk 0:02:58.8]} 4... Nc6 {[%clk 0:02:57.7]} 5. d5 {[%clk
0:02:58.6]} 5... Nf6 {[%clk 0:02:56.9]} 6. dxc6 {[%clk 0:02:53.5]} 6... e4
{[%clk 0:02:57.3]} 7. cxd7+ {[%clk 0:02:46.6]} 7... Bxd7 {[%clk 0:02:58.2]} 8.
Bc4 {[%clk 0:02:43.7]} 8... exf3 {[%clk 0:02:56]} 9. Qxf3 {[%clk 0:02:44.6]}
9... Bc6 {[%clk 0:02:52.7]} 10. Qe2+ {[%clk 0:02:23.5]} 10... Be7 {[%clk
0:02:50.1]} 11. O-O {[%clk 0:02:23.5]} 11... O-O {[%clk 0:02:50.6]} 12. Nc3
{[%clk 0:02:18.1]} 12... Re8 {[%clk 0:02:49.1]} 13. Qd3 {[%clk 0:02:08.5]} 13...
Qxd3 {[%clk 0:02:45.6]} 14. Bxd3 {[%clk 0:02:09.4]} 14... Rad8 {[%clk
0:02:45.3]} 15. h3 {[%clk 0:02:06]} 15... a6 {[%clk 0:02:44.5]} 16. Bf4 {[%clk
0:02:05.7]} 16... Bd6 {[%clk 0:02:43.9]} 17. Bg5 {[%clk 0:02:06.1]} 17... Be5
{[%clk 0:02:42.1]} 18. Rad1 {[%clk 0:01:57.9]} 18... h6 {[%clk 0:02:41]} 19. Be3
{[%clk 0:01:55.7]} 19... Bxc3 {[%clk 0:01:58.4]} 20. bxc3 {[%clk 0:01:56.6]}
20... Bb5 {[%clk 0:01:59.3]} 21. c4 {[%clk 0:01:54.1]} 21... Bc6 {[%clk
0:01:58.7]} 22. Bf4 {[%clk 0:01:50.3]} 22... Rd7 {[%clk 0:01:37.7]} 23. Rfe1
{[%clk 0:01:41]} 23... Rde7 {[%clk 0:01:37.2]} 24. Rxe7 {[%clk 0:01:24.1]} 24...
Rxe7 {[%clk 0:01:38.1]} 25. f3 {[%clk 0:01:22]} 25... g5 {[%clk 0:01:36.5]} 26.
Bd2 {[%clk 0:01:18.4]} 26... Nh5 {[%clk 0:01:31.7]} 27. Kf2 {[%clk 0:01:17]}
27... Nf4 {[%clk 0:01:31.2]} 28. Bxf4 {[%clk 0:01:06.6]} 28... gxf4 {[%clk
0:01:32.1]} 29. Re1 {[%clk 0:00:31.5]} 29... Rxe1 {[%clk 0:01:30.5]} 30. Kxe1
{[%clk 0:00:32.4]} 30... b6 {[%clk 0:01:31.4]} 31. Ke2 {[%clk 0:00:16.3]} 31...
Bb7 {[%clk 0:01:27.7]} 32. Be4 {[%clk 0:00:16]} 32... Bc8 {[%clk 0:01:24.8]} 33.
Kd3 {[%clk 0:00:15.7]} 33... c5 {[%clk 0:01:21.5]} 34. Bd5 {[%clk 0:00:14.8]}
34... Bf5+ {[%clk 0:01:20.7]} 35. Be4 {[%clk 0:00:15.3]} 35... Be6 {[%clk
0:01:17.2]} 36. Bb7 {[%clk 0:00:14.4]} 36... Bf5+ {[%clk 0:01:08]} 37. Kc3
{[%clk 0:00:13.9]} 37... a5 {[%clk 0:01:03.1]} 38. Be4 {[%clk 0:00:13.8]} 38...
Bd7 {[%clk 0:01:02.1]} 39. Kd3 {[%clk 0:00:08]} 39... Kg7 {[%clk 0:01:02.3]} 40.
c3 {[%clk 0:00:05.7]} 40... Kf6 {[%clk 0:01:02.1]} 41. Bd5 {[%clk 0:00:04.7]}
41... Bf5+ {[%clk 0:01:01.6]} 42. Be4 {[%clk 0:00:05.2]} 42... Be6 {[%clk
0:00:55.8]} 43. Bd5 {[%clk 0:00:04.5]} 43... Ke5 {[%clk 0:00:42.4]} 44. Bxe6
{[%clk 0:00:02.6]} 44... fxe6 {[%clk 0:00:43.3]} 45. Kd2 {[%clk 0:00:01.7]}
45... Kf5 {[%clk 0:00:43.2]} 46. Kc2 {[%clk 0:00:01.4]} 46... Kg5 {[%clk
0:00:42.9]} 47. Kd3 {[%clk 0:00:01.6]} 47... Kh4 {[%clk 0:00:41.9]} 48. Ke2
{[%clk 0:00:01]} 48... Kg3 {[%clk 0:00:42.1]} 49. Kf1 {[%clk 0:00:01.8]} 49...
e5 {[%clk 0:00:20.6]} 50. Kg1 {[%clk 0:00:02.2]} 50... Kh4 {[%clk 0:00:19.8]}
51. Kf2 {[%clk 0:00:02.3]} 51... Kg5 {[%clk 0:00:20.3]} 52. g3 {[%clk
0:00:01.6]} 52... fxg3+ {[%clk 0:00:18.8]} 53. Kxg3 {[%clk 0:00:02.5]} 53... h5
{[%clk 0:00:18.6]} 54. a3 {[%clk 0:00:01.3]} 54... a4 {[%clk 0:00:16]} 55. Kg2
{[%clk 0:00:01.1]} 55... Kf4 {[%clk 0:00:15.1]} 56. Kf2 {[%clk 0:00:01.9]} 56...
e4 {[%clk 0:00:14.5]} 57. fxe4 {[%clk 0:00:02.8]} 57... Kxe4 {[%clk 0:00:15.4]}
58. Kg3 {[%clk 0:00:03.6]} 58... Kd3 {[%clk 0:00:15.4]} 59. Kh4 {[%clk
0:00:04.4]} 59... Kxc4 {[%clk 0:00:15.2]} 60. Kxh5 {[%clk 0:00:05.3]} 60... Kb3
{[%clk 0:00:15.4]} 61. Kg6 {[%clk 0:00:05]} 61... Kxa3 {[%clk 0:00:16.3]} 62. h4
{[%clk 0:00:05.6]} 62... Kb3 {[%clk 0:00:17.2]} 63. h5 {[%clk 0:00:06.1]} 63...
a3 {[%clk 0:00:18.1]} 64. h6 {[%clk 0:00:06.6]} 64... a2 {[%clk 0:00:19]} 65. h7
{[%clk 0:00:07.2]} 65... a1=Q {[%clk 0:00:19.9]} 66. h8=Q {[%clk 0:00:07.9]}
66... Qxc3 {[%clk 0:00:20.8]} 67. Qb8 {[%clk 0:00:06.9]} 67... Qb4 {[%clk
0:00:19.2]} 68. Kf5 {[%clk 0:00:06.6]} 68... c4 {[%clk 0:00:19.2]} 69. Ke4
{[%clk 0:00:06.7]} 69... c3+ {[%clk 0:00:19.4]} 70. Kd3 {[%clk 0:00:07.3]} 70...
Qc4+ {[%clk 0:00:19.7]} 71. Ke3 {[%clk 0:00:07.6]} 71... b5 {[%clk 0:00:20.1]}
72. Qh8 {[%clk 0:00:02.1]} 72... c2 {[%clk 0:00:19.7]} 73. Qa1 {[%clk
0:00:01.9]} 73... c1=Q+ {[%clk 0:00:19.4]} 74. Qxc1 {[%clk 0:00:02.8]} 74...
Qxc1+ {[%clk 0:00:19.7]} 0-1

[Event "Late-Titled-Tuesday-Blitz-May-14-2024"]
[Site "Chess.com"]
[Date "2024.05.14"]
[Round "3"]
[White "TheKnightOfBosnia"]
[Black "tgpgoat"]
[Result "0-1"]
[WhiteElo "2622"]
[BlackElo "2464"]
[TimeControl "180+1"]
[EndTime "14:30:38 PDT"]
[Termination "tgpgoat won by resignation"]

1. e4 {[%clk 0:03:00.9]} 1... c5 {[%clk 0:02:59.1]} 2. Nf3 {[%clk 0:03:00.4]}
2... e6 {[%clk 0:02:59.2]} 3. d4 {[%clk 0:03:00.8]} 3... cxd4 {[%clk 0:03:00.1]}
4. Nxd4 {[%clk 0:03:01.6]} 4... Nc6 {[%clk 0:03:00.5]} 5. Nc3 {[%clk 0:02:58.7]}
5... Qc7 {[%clk 0:02:56.3]} 6. a3 {[%clk 0:02:57.2]} 6... a6 {[%clk 0:02:56.8]}
7. Be2 {[%clk 0:02:54.5]} 7... Nf6 {[%clk 0:02:57.2]} 8. f4 {[%clk 0:02:51.8]}
8... b5 {[%clk 0:02:57]} 9. Nxc6 {[%clk 0:02:50.1]} 9... Qxc6 {[%clk 0:02:55.3]}
10. e5 {[%clk 0:02:47.1]} 10... Nd5 {[%clk 0:02:54.3]} 11. Nxd5 {[%clk
0:02:45.1]} 11... exd5 {[%clk 0:02:54]} 12. Be3 {[%clk 0:02:40.1]} 12... Bc5
{[%clk 0:02:53.5]} 13. Bd4 {[%clk 0:02:37.8]} 13... Bxd4 {[%clk 0:02:48.7]} 14.
Qxd4 {[%clk 0:02:38.7]} 14... Qxc2 {[%clk 0:02:48.8]} 15. Kf2 {[%clk 0:02:39]}
15... O-O {[%clk 0:02:44.3]} 16. Rac1 {[%clk 0:02:36.6]} 16... Qg6 {[%clk
0:02:39]} 17. Rc7 {[%clk 0:02:30.4]} 17... Rb8 {[%clk 0:02:20.7]} 18. Bd3 {[%clk
0:02:22.7]} 18... Qg4 {[%clk 0:02:14.9]} 19. Rhc1 {[%clk 0:02:10.6]} 19... Bb7
{[%clk 0:02:11.5]} 20. h3 {[%clk 0:02:02.5]} 20... Qh4+ {[%clk 0:02:06.4]} 21.
Kg1 {[%clk 0:02:02]} 21... Bc6 {[%clk 0:02:05.6]} 22. Ra7 {[%clk 0:01:51.1]}
22... g5 {[%clk 0:01:41.4]} 23. e6 {[%clk 0:01:38.9]} 23... fxe6 {[%clk
0:01:07.8]} 24. Rxc6 {[%clk 0:01:37.6]} 24... Rxf4 {[%clk 0:01:08.4]} 25. Qe5
{[%clk 0:01:08.8]} 25... Qf2+ {[%clk 0:00:48.9]} 26. Kh2 {[%clk 0:01:08.9]}
26... Qxa7 {[%clk 0:00:49.3]} 27. Qxg5+ {[%clk 0:01:00.6]} 27... Kh8 {[%clk
0:00:47.9]} 28. Qe5+ {[%clk 0:00:59.4]} 28... Kg8 {[%clk 0:00:47.6]} 29. Bxh7+
{[%clk 0:00:21.3]} 29... Kxh7 {[%clk 0:00:42]} 30. Rc7 {[%clk 0:00:21.7]} 30...
Qf2 {[%clk 0:00:16.9]} 31. Rxd7+ {[%clk 0:00:19.8]} 31... Rf7 {[%clk 0:00:17.6]}
32. Rxf7+ {[%clk 0:00:18.4]} 32... Qxf7 {[%clk 0:00:18.5]} 33. Qxb8 {[%clk
0:00:18.9]} 33... Qf5 {[%clk 0:00:15.5]} 34. Qb7+ {[%clk 0:00:17.4]} 34... Kg6
{[%clk 0:00:14.9]} 35. Qxa6 {[%clk 0:00:17.4]} 35... d4 {[%clk 0:00:15]} 36. Qd6
{[%clk 0:00:16.3]} 36... d3 {[%clk 0:00:13.8]} 37. Kg1 {[%clk 0:00:14.2]} 37...
Qe4 {[%clk 0:00:14.1]} 38. Qg3+ {[%clk 0:00:12]} 38... Kf5 {[%clk 0:00:03.4]}
39. Qf2+ {[%clk 0:00:11]} 39... Ke5 {[%clk 0:00:03.6]} 40. Qd2 {[%clk
0:00:10.9]} 40... Kd4 {[%clk 0:00:03.5]} 41. Kf2 {[%clk 0:00:11]} 41... Qf5+
{[%clk 0:00:03.6]} 42. Ke1 {[%clk 0:00:10.7]} 42... Qe4+ {[%clk 0:00:03.8]} 43.
Kd1 {[%clk 0:00:10]} 43... e5 {[%clk 0:00:04.4]} 44. Qc3+ {[%clk 0:00:08.4]}
44... Kd5 {[%clk 0:00:04.2]} 45. Qd2 {[%clk 0:00:08.1]} 45... Kd4 {[%clk
0:00:04.4]} 46. b3 {[%clk 0:00:07.3]} 46... Qg6 {[%clk 0:00:03.2]} 47. Qf2+
{[%clk 0:00:07.1]} 47... Kd5 {[%clk 0:00:03.2]} 48. Kd2 {[%clk 0:00:06.8]} 48...
e4 {[%clk 0:00:01.8]} 49. g4 {[%clk 0:00:06.7]} 49... Qg5+ {[%clk 0:00:02.1]}
50. Qe3 {[%clk 0:00:07.1]} 50... Qe5 {[%clk 0:00:02.6]} 51. b4 {[%clk
0:00:04.5]} 51... Qb2+ {[%clk 0:00:03.2]} 52. Ke1 {[%clk 0:00:04.4]} 52... Qb1+
{[%clk 0:00:03.9]} 53. Kf2 {[%clk 0:00:04.8]} 53... Qc2+ {[%clk 0:00:04.6]} 54.
Kg3 {[%clk 0:00:05]} 54... d2 {[%clk 0:00:05.5]} 55. Qg5+ {[%clk 0:00:04.6]}
55... Kd4 {[%clk 0:00:05.6]} 56. Qf6+ {[%clk 0:00:04.6]} 56... Ke3 {[%clk
0:00:06]} 57. Qf2+ {[%clk 0:00:04.7]} 57... Kd3 {[%clk 0:00:06.2]} 58. Qf1+
{[%clk 0:00:04.5]} 58... Kc3 {[%clk 0:00:06.8]} 59. Qf6+ {[%clk 0:00:04.2]}
59... Kb3 {[%clk 0:00:06.1]} 60. Qe6+ {[%clk 0:00:04.5]} 60... Qc4 {[%clk
0:00:06.2]} 61. Qd6 {[%clk 0:00:04.1]} 61... Qd3+ {[%clk 0:00:06.5]} 62. Qxd3+
{[%clk 0:00:03.8]} 62... exd3 {[%clk 0:00:07.4]} 63. Kh4 {[%clk 0:00:04.3]}
63... d1=Q {[%clk 0:00:08.3]} 64. Kh5 {[%clk 0:00:04.9]} 64... Qg1 {[%clk
0:00:09.1]} 65. h4 {[%clk 0:00:05.3]} 65... d2 {[%clk 0:00:10]} 66. Kg5 {[%clk
0:00:04.6]} 66... d1=Q {[%clk 0:00:10.9]} 67. h5 {[%clk 0:00:05.5]} 67... Qd5+
{[%clk 0:00:11.3]} 68. Kh6 {[%clk 0:00:06.4]} 68... Qe4 {[%clk 0:00:11.9]} 69.
g5 {[%clk 0:00:06.7]} 69... Qeg4 {[%clk 0:00:11.7]} 70. g6 {[%clk 0:00:07]}
70... Qg5+ {[%clk 0:00:12.2]} 71. Kg7 {[%clk 0:00:07]} 71... Qxh5 {[%clk
0:00:12.4]} 72. Kf7 {[%clk 0:00:07.9]} 72... Qhxg6+ {[%clk 0:00:12.7]} 0-1

[Event "Late-Titled-Tuesday-Blitz-May-14-2024"]
[Site "Chess.com"]
[Date "2024.05.14"]
[Round "3"]
[White "Sokoloco"]
[Black "vpsetter"]
[Result "0-1"]
[WhiteElo "2734"]
[BlackElo "2528"]
[TimeControl "180+1"]
[EndTime "14:30:40 PDT"]
[Termination "vpsetter won by resignation"]

1. b3 {[%clk 0:02:18.4]} 1... Nc6 {[%clk 0:02:58.4]} 2. Bb2 {[%clk 0:02:15.8]}
2... e5 {[%clk 0:02:58.8]} 3. e3 {[%clk 0:02:15.6]} 3... Nf6 {[%clk 0:02:59]} 4.
Nf3 {[%clk 0:02:15.9]} 4... d6 {[%clk 0:02:50.3]} 5. d4 {[%clk 0:02:15.7]} 5...
exd4 {[%clk 0:02:41.8]} 6. Nxd4 {[%clk 0:02:13.4]} 6... Bd7 {[%clk 0:02:36.2]}
7. c4 {[%clk 0:02:05.6]} 7... d5 {[%clk 0:02:29.6]} 8. Nc3 {[%clk 0:01:29.4]}
8... dxc4 {[%clk 0:02:19.2]} 9. Bxc4 {[%clk 0:01:30.3]} 9... Bc5 {[%clk
0:02:12.9]} 10. O-O {[%clk 0:01:11.3]} 10... O-O {[%clk 0:01:59.8]} 11. Nf3
{[%clk 0:00:39.5]} 11... Bg4 {[%clk 0:01:52.7]} 12. Qxd8 {[%clk 0:00:36.2]}
12... Raxd8 {[%clk 0:01:51.8]} 13. Nb5 {[%clk 0:00:30]} 13... Bxf3 {[%clk
0:01:49.9]} 14. gxf3 {[%clk 0:00:29.5]} 14... Ne8 {[%clk 0:01:48.9]} 15. Rad1
{[%clk 0:00:28.5]} 15... Rxd1 {[%clk 0:01:41.4]} 16. Rxd1 {[%clk 0:00:29.4]}
16... a6 {[%clk 0:01:40.9]} 17. Nc3 {[%clk 0:00:23.1]} 17... Nd6 {[%clk
0:01:16.8]} 18. Be2 {[%clk 0:00:23.5]} 18... Rd8 {[%clk 0:01:17.1]} 19. Nd5
{[%clk 0:00:14.7]} 19... Ne8 {[%clk 0:01:14.6]} 20. Kf1 {[%clk 0:00:08.9]} 20...
Kf8 {[%clk 0:01:14.1]} 21. a3 {[%clk 0:00:07.5]} 21... Ne7 {[%clk 0:00:56.6]}
22. Nxe7 {[%clk 0:00:04.2]} 22... Rxd1+ {[%clk 0:00:56.7]} 23. Bxd1 {[%clk
0:00:05.1]} 23... Bxe7 {[%clk 0:00:53.7]} 24. f4 {[%clk 0:00:06]} 24... Bf6
{[%clk 0:00:54]} 25. Bc1 {[%clk 0:00:03.9]} 25... a5 {[%clk 0:00:50.6]} 26. Bf3
{[%clk 0:00:04.8]} 26... b6 {[%clk 0:00:50.7]} 27. Ke2 {[%clk 0:00:05.1]} 27...
Ke7 {[%clk 0:00:49.4]} 28. Kd3 {[%clk 0:00:05]} 28... Kd7 {[%clk 0:00:36.2]} 29.
a4 {[%clk 0:00:05]} 29... Be7 {[%clk 0:00:34]} 30. Bg4+ {[%clk 0:00:04.7]} 30...
Kc6 {[%clk 0:00:31.4]} 31. Bf3+ {[%clk 0:00:05.3]} 31... Kd7 {[%clk 0:00:31.4]}
32. Bd5 {[%clk 0:00:05.9]} 32... Nd6 {[%clk 0:00:30.5]} 33. Ba3 {[%clk 0:00:05]}
33... c6 {[%clk 0:00:15.8]} 34. Bg2 {[%clk 0:00:04.5]} 34... b5 {[%clk
0:00:16.2]} 35. Bb2 {[%clk 0:00:03.5]} 35... Bf6 {[%clk 0:00:15]} 36. Bh3+
{[%clk 0:00:02]} 36... Ke7 {[%clk 0:00:14.5]} 37. Be5 {[%clk 0:00:02.9]} 37...
Bxe5 {[%clk 0:00:10.7]} 38. fxe5 {[%clk 0:00:03.8]} 38... Nb7 {[%clk 0:00:11.3]}
39. Bg2 {[%clk 0:00:04.1]} 39... Nc5+ {[%clk 0:00:11.1]} 40. Kc2 {[%clk
0:00:04.2]} 40... bxa4 {[%clk 0:00:11.4]} 41. bxa4 {[%clk 0:00:05.1]} 41... Nxa4
{[%clk 0:00:12.2]} 42. Bxc6 {[%clk 0:00:04.8]} 42... Nc5 {[%clk 0:00:12.1]} 43.
Kc3 {[%clk 0:00:05.2]} 43... Ke6 {[%clk 0:00:12.2]} 44. f4 {[%clk 0:00:05]}
44... g6 {[%clk 0:00:12.3]} 45. Kc4 {[%clk 0:00:05.5]} 45... Nd7 {[%clk
0:00:12]} 46. Bxd7+ {[%clk 0:00:04.4]} 46... Kxd7 {[%clk 0:00:12.3]} 47. Kb5
{[%clk 0:00:05.3]} 47... Ke6 {[%clk 0:00:12.3]} 48. Kxa5 {[%clk 0:00:02.8]}
48... Kd5 {[%clk 0:00:12.8]} 49. Kb6 {[%clk 0:00:03.5]} 49... Ke4 {[%clk
0:00:13.5]} 50. Kc6 {[%clk 0:00:04]} 50... Kxe3 {[%clk 0:00:14]} 51. Kd6 {[%clk
0:00:02.5]} 51... Kxf4 {[%clk 0:00:14.5]} 52. Ke7 {[%clk 0:00:03.1]} 52... Kxe5
{[%clk 0:00:15.1]} 53. Kxf7 {[%clk 0:00:03.8]} 53... Kf5 {[%clk 0:00:15.7]} 54.
Kg7 {[%clk 0:00:02.4]} 54... h5 {[%clk 0:00:16.3]} 55. Kh6 {[%clk 0:00:03]}
55... h4 {[%clk 0:00:16.4]} 56. h3 {[%clk 0:00:02.7]} 56... Kf6 {[%clk
0:00:16.8]} 57. Kh7 {[%clk 0:00:02.9]} 57... Kg5 {[%clk 0:00:13.1]} 58. Kg7
{[%clk 0:00:03.3]} 58... Kf5 {[%clk 0:00:09.5]} 59. Kh6 {[%clk 0:00:03.5]} 59...
Kf6 {[%clk 0:00:10]} 60. Kh7 {[%clk 0:00:03.7]} 60... g5 {[%clk 0:00:10.6]} 61.
Kh6 {[%clk 0:00:04]} 61... Kf5 {[%clk 0:00:10.2]} 62. Kh5 {[%clk 0:00:04.5]}
62... Kf4 {[%clk 0:00:10.9]} 63. Kg6 {[%clk 0:00:05.1]} 63... g4 {[%clk
0:00:11.4]} 0-1

[Event "Late-Titled-Tuesday-Blitz-May-14-2024"]
[Site "Chess.com"]
[Date "2024.05.14"]
[Round "3"]
[White "ATM622"]
[Black "Ramil_Faizrakhmanov"]
[Result "1/2-1/2"]
[WhiteElo "2544"]
[BlackElo "2861"]
[TimeControl "180+1"]
[EndTime "14:30:42 PDT"]
[Termination "Game drawn - insufficient material"]

1. d4 {[%clk 0:03:00.9]} 1... Nf6 {[%clk 0:02:59.5]} 2. c4 {[%clk 0:03:00.3]}
2... g6 {[%clk 0:02:58.8]} 3. g3 {[%clk 0:03:00.2]} 3... Bg7 {[%clk 0:02:58.6]}
4. Bg2 {[%clk 0:03:00.2]} 4... O-O {[%clk 0:02:59.3]} 5. Nf3 {[%clk 0:03:00]}
5... d6 {[%clk 0:02:59.6]} 6. O-O {[%clk 0:02:59.9]} 6... Nbd7 {[%clk 0:02:59]}
7. Qc2 {[%clk 0:02:58.3]} 7... c6 {[%clk 0:02:58.7]} 8. Rd1 {[%clk 0:02:56.4]}
8... Re8 {[%clk 0:02:53.1]} 9. e4 {[%clk 0:02:55]} 9... e5 {[%clk 0:02:52.7]}
10. Nc3 {[%clk 0:02:50.8]} 10... exd4 {[%clk 0:02:52.2]} 11. Nxd4 {[%clk
0:02:51]} 11... Nc5 {[%clk 0:02:43]} 12. b4 {[%clk 0:02:46.2]} 12... Ne6 {[%clk
0:02:32.9]} 13. Nxe6 {[%clk 0:02:46.4]} 13... Bxe6 {[%clk 0:02:33.2]} 14. Bf4
{[%clk 0:02:45.4]} 14... Bxc4 {[%clk 0:02:15.8]} 15. Rxd6 {[%clk 0:02:45.5]}
15... Qe7 {[%clk 0:02:13.8]} 16. Rad1 {[%clk 0:02:44.3]} 16... Be6 {[%clk
0:02:03.8]} 17. b5 {[%clk 0:02:38.6]} 17... cxb5 {[%clk 0:01:58.3]} 18. Nxb5
{[%clk 0:02:38.3]} 18... Rac8 {[%clk 0:01:55.7]} 19. Qa4 {[%clk 0:02:36.3]}
19... a6 {[%clk 0:01:55.2]} 20. Rxe6 {[%clk 0:02:23.6]} 20... Qxe6 {[%clk
0:01:41.8]} 21. Nd6 {[%clk 0:02:23.3]} 21... Nh5 {[%clk 0:01:26.7]} 22. Nxe8
{[%clk 0:02:21.2]} 22... Qxe8 {[%clk 0:01:13.3]} 23. Qxe8+ {[%clk 0:02:19.7]}
23... Rxe8 {[%clk 0:01:14.2]} 24. Be3 {[%clk 0:02:19.5]} 24... Nf6 {[%clk
0:01:13.4]} 25. f3 {[%clk 0:02:18.3]} 25... Rc8 {[%clk 0:01:13.1]} 26. Rc1
{[%clk 0:02:14.1]} 26... Rd8 {[%clk 0:01:05.5]} 27. Bf1 {[%clk 0:02:12.1]} 27...
h5 {[%clk 0:00:58.9]} 28. Bg5 {[%clk 0:02:06.1]} 28... Rd7 {[%clk 0:00:55.1]}
29. Kf2 {[%clk 0:01:58.6]} 29... Nh7 {[%clk 0:00:50]} 30. Rc8+ {[%clk
0:01:57.9]} 30... Nf8 {[%clk 0:00:48]} 31. Bh3 {[%clk 0:01:36.2]} 31... Rd3
{[%clk 0:00:43.1]} 32. Rb8 {[%clk 0:01:27.7]} 32... b5 {[%clk 0:00:38.3]} 33.
Be7 {[%clk 0:00:33.7]} 33... Rd2+ {[%clk 0:00:36.4]} 34. Ke3 {[%clk 0:00:32.8]}
34... Rxh2 {[%clk 0:00:35.1]} 35. Bd7 {[%clk 0:00:27.3]} 35... Rxa2 {[%clk
0:00:28]} 36. Ra8 {[%clk 0:00:27]} 36... Rb2 {[%clk 0:00:10.7]} 37. e5 {[%clk
0:00:23.3]} 37... Rb3+ {[%clk 0:00:08.2]} 38. Ke2 {[%clk 0:00:22.8]} 38... Rb2+
{[%clk 0:00:07.8]} 39. Ke3 {[%clk 0:00:21.3]} 39... Bh6+ {[%clk 0:00:07.6]} 40.
f4 {[%clk 0:00:19.7]} 40... Rb3+ {[%clk 0:00:07.6]} 41. Kf2 {[%clk 0:00:19.8]}
41... Rd3 {[%clk 0:00:07.6]} 42. e6 {[%clk 0:00:18.7]} 42... fxe6 {[%clk
0:00:05.8]} 43. Bxe6+ {[%clk 0:00:18.1]} 43... Kh7 {[%clk 0:00:05.3]} 44. Bxf8
{[%clk 0:00:17.8]} 44... Bxf8 {[%clk 0:00:05.8]} 45. Rxf8 {[%clk 0:00:17.4]}
45... Rd6 {[%clk 0:00:06.2]} 46. f5 {[%clk 0:00:14.9]} 46... gxf5 {[%clk
0:00:04.9]} 47. Bxf5+ {[%clk 0:00:14.8]} 47... Kg7 {[%clk 0:00:04.8]} 48. Rc8
{[%clk 0:00:12]} 48... Rf6 {[%clk 0:00:04.7]} 49. Rc5 {[%clk 0:00:12.1]} 49...
Rb6 {[%clk 0:00:05.2]} 50. Ke3 {[%clk 0:00:12]} 50... b4 {[%clk 0:00:05.2]} 51.
Bb1 {[%clk 0:00:11.7]} 51... Kh6 {[%clk 0:00:04.2]} 52. Ra5 {[%clk 0:00:10.2]}
52... b3 {[%clk 0:00:04.2]} 53. Kd4 {[%clk 0:00:10.4]} 53... b2 {[%clk
0:00:04.3]} 54. Kc5 {[%clk 0:00:09.9]} 54... Rb5+ {[%clk 0:00:03.4]} 55. Rxb5
{[%clk 0:00:09.6]} 55... axb5 {[%clk 0:00:04.3]} 56. Kxb5 {[%clk 0:00:09.9]}
56... Kg5 {[%clk 0:00:04.9]} 57. Kb4 {[%clk 0:00:09.5]} 57... Kg4 {[%clk
0:00:05.3]} 58. Kb3 {[%clk 0:00:08.8]} 58... Kxg3 {[%clk 0:00:05.7]} 59. Kxb2
{[%clk 0:00:09.2]} 59... Kf4 {[%clk 0:00:05.8]} 60. Ba2 {[%clk 0:00:08.5]} 60...
Ke5 {[%clk 0:00:05.8]} 61. Bc4 {[%clk 0:00:06.4]} 61... h4 {[%clk 0:00:05.7]}
62. Ba6 {[%clk 0:00:06.4]} 62... h3 {[%clk 0:00:05.2]} 63. Bb7 {[%clk
0:00:06.8]} 63... h2 {[%clk 0:00:05.8]} 64. Kc2 {[%clk 0:00:07.1]} 64... Kf4
{[%clk 0:00:05.9]} 65. Kd2 {[%clk 0:00:07.2]} 65... Kg3 {[%clk 0:00:06.4]} 66.
Ke2 {[%clk 0:00:07.6]} 66... h1=Q {[%clk 0:00:06.8]} 67. Bxh1 {[%clk 0:00:07.5]}
1/2-1/2